Cogmind - Beta 14 @@@ ROGUE MODE // 2024.09.20 @ 09:30:14 Player: Bunch Result: Destroyed by as-58677 with Assembled Rifle Performance ------------- Evolutions (0) 0 Regions Visited (2) 400 Robots Destroyed (12) 60 Value Destroyed (284) 284 Prototype IDs (1) 20 Alien Tech Used (0) 0 Bonus (-211) -211 TOTAL SCORE: 553 Bonus ------- Follower Combat Kills 14 Friendly Fire -225 Cogmind --------- Core Integrity 0/250 Matter 283/300 Energy 100/100 System Corruption 0% Temperature Cool (0) Movement Core (50) Location -10/Mines Parts ------- > --- POWER (1) -------- (None) > --- PROPULSION (2) --- (None) > --- UTILITY (2) ------ Experimental Sensor Array Signal Interpreter > --- WEAPON (2) ------- (None) > --- INVENTORY (5) ---- Light Ion Engine Aluminum Leg Aluminum Leg Peak State ------------ > --- POWER ------------ Light Nuclear Core > --- PROPULSION ------- Aluminum Leg Aluminum Leg > --- UTILITY ---------- Experimental Sensor Array Signal Interpreter > --- WEAPON ----------- Light Assault Rifle Grenade Launcher > --- INVENTORY -------- Light Ion Engine Aluminum Leg Aluminum Leg [Rating: 17] Favorites ----------- Power Light Ion Engine Engine Light Ion Engine Power Core Light Nuclear Core Propulsion Light Treads Treads Light Treads Leg Aluminum Leg Wheel Wheel Utility Signal Interpreter Device Experimental Sensor Array Storage Small Storage Unit Processor Signal Interpreter Weapon Light Assault Rifle Energy Gun Small Laser Ballistic Gun Light Assault Rifle Launcher Grenade Launcher Build | -11 -10 -10 ------- Run | Yrd Mat Min Slots Evolved . | . . . Power . | . . . Propulsion . | . . . Utility . | . . . Weapon . | . . . Parts Attached 17 | 6 3 8 Power 4 | 1 1 2 Engine 3 | 1 1 1 Core 1 | . . 1 Reactor . | . . . Propulsion 6 | 2 . 4 Treads 2 | 2 . . Leg 2 | . . 2 Wheel 2 | . . 2 Hover . | . . . Flight . | . . . Utility 4 | 1 2 1 Device 1 | . . 1 Storage 2 | 1 1 . Processor 1 | . 1 . Hackware . | . . . Protection . | . . . Artifact . | . . . Weapon 3 | 2 . 1 Energy Gun 1 | 1 . . Energy Cannon . | . . . Ballistic Gun 1 | 1 . . Ballistic Cannon . | . . . Launcher 1 | . . 1 Special Weapon . | . . . Impact Weapon . | . . . Slashing Weapon . | . . . Piercing Weapon . | . . . Special Melee Weapon . | . . . Unidentified Prototypes 1 | . . 1 Parts Lost 10 | . 1 9 Power 2 | . 1 1 Propulsion 5 | . . 5 Utility . | . . . Weapon 3 | . . 3 Highest Loss Streak 5 | . 1 5 To Critical Strikes . | . . . Average Slot Usage (%) 82 | . 81 82 Engine 10 | . 12 8 Core 2 | . . 5 Treads 14 | . 28 . Leg 12 | . . 24 Storage 3 | . 7 . Processor 9 | . 4 14 Energy Gun 7 | . 14 . Ballistic Gun 14 | . 14 14 Launcher 6 | . . 12 Peak Build Rating 17 | 6 7 17 Average Rating 6 | 4 6 7 On Entrance 4 | . 6 6 Naked Turns . | . . . Heaviest Build 147 | 10 147 10 Greatest Support 40 | 40 40 20 Greatest Overweight (x) 3 | . 3 . Average Overweight (x) . | . . . Largest Inventory Capacity 30 | 8 30 5 Average Capacity 9 | 7 13 5 Most Carried 6 | 3 6 5 Average Carried 3 | 1 4 3 Final Capacity 8 | 8 5 5 Final Carried 5 | 3 5 3 Class Distribution -------------------- 85% | Mutant 14% | Hauler-Mutant Dominant Class ---------------- Mutant | -10/Materials Mutant | -10/Mines Resources | -11 -10 -10 ----------- Run | Yrd Mat Min Matter Collected 394 | 193 106 95 Remotely . | . . . Salvage Created 375 | . 216 159 Parts 34 | . 16 18 Haulers Intercepted . | . . . Recyclers Shooed . | . . . Parts Field Recycled . | . . . Retrieved Matter . | . . . Parts Self-Destructed . | . . . Prevented . | . . . Kills | -11 -10 -10 ------- Run | Yrd Mat Min Combat Hostiles Destroyed 8 | . 5 3 Guns 7 | . 5 2 AOE 1 | . . 1 Classes Destroyed 4 | . 2 2 Builder 2 | . 1 1 Swarmer 1 | . . 1 Grunt 8 | . 5 3 Zionite 1 | . . 1 Best Kill Streak 5 | . 5 1 Combat Bots Only 5 | . 5 1 Max Kills in Single Turn 2 | . 1 2 Gunslinging . | . . . Exploded 1 | . . 1 Melee . | . . . Uniques/NPCs Destroyed . | . . . Combat | -11 -10 -10 -------- Run | Yrd Mat Min Hostile Shots Fired 96 | . 56 40 Missed 25 | . 16 9 Damage Taken 1130 | . 467 663 Core 251 | . 106 145 Absorbed by Shields . | . . . Core Remaining (%) 100 | 100 . . Volleys Fired 38 | . 17 21 Largest 2 | . 2 2 Hottest 60 | . 60 60 Shots Fired 63 | . 34 29 Gun 58 | . 34 24 Cannon . | . . . Launcher 5 | . . 5 Special . | . . . Kinetic 37 | . 17 20 Thermal 21 | . 17 4 Explosive 5 | . . 5 Electromagnetic . | . . . Robot Hit Streak 9 | . 6 9 Robot Miss Streak 3 | . 1 3 Penetration Max . | . . . Secondary Targets 3 | . 3 . Max Gunslinging Chain 1 | . 1 . Shots Hit Robots 45 | . 25 20 Core Hits 33 | . 14 19 Critical Kills . | . . . Critical Parts Destroyed . | . . . Critical Strikes . | . . . Melee Attacks . | . . . Impact . | . . . Slashing . | . . . Piercing . | . . . Sneak Attacks . | . . . Combat Hostiles . | . . . Follow-up Attacks . | . . . Damage Inflicted 636 | . 243 393 Guns 388 | . 237 151 Cannons . | . . . Explosions 242 | . . 242 Melee . | . . . Ramming 6 | . 6 . Kinetic 226 | . 109 117 Thermal 162 | . 128 34 Explosive 242 | . . 242 Electromagnetic . | . . . Impact . | . . . Slashing . | . . . Piercing . | . . . Highest Corruption . | . . . Average Corruption . | . . . Corruption Purged . | . . . Corruption Blocked . | . . . Overload Shots . | . . . Overflow Damage 14 | . . 14 Projectiles . | . . . Explosions 14 | . . 14 Melee . | . . . Knockbacks . | . . . Impact . | . . . Kinetic . | . . . Secondary . | . . . Self-Inflicted Damage 81 | . . 81 Shots 3 | . . 3 Rammed 1 | . 1 . Targets Rammed 1 | . 1 . Kicked . | . . . Crushed . | . . . Highest Temperature 151 | . 151 89 Average Temperature 45 | . 55 28 Received Heat Transfer 456 | . 258 198 Siege Activations . | . . . Robots Corrupted . | . . . Combat Hostiles . | . . . Parts Fried . | . . . Impact Corruptions . | . . . Robots Melted . | . . . Combat Hostiles . | . . . Parts Melted . | . . . Heat Transferred 375 | . 300 75 Parts Sabotaged . | . . . Parts Stolen . | . . . Parts Stripped . | . . . Power Chain Reactions . | . . . Alert | -11 -10 -10 ------- Run | Yrd Mat Min Peak Influence 156 | . 156 110 Initial . | . . . Average 52 | . 69 49 Maximum Alert Level . | . . . Low Security (%) 100 | 100 100 100 Level 1 . | . . . Level 2 . | . . . Level 3 . | . . . Level 4 . | . . . Level 5 . | . . . High Security . | . . . Max Security . | . . . Squads Dispatched 2 | . 2 . Investigation 2 | . 2 . Extermination . | . . . Reinforcement . | . . . Assault . | . . . Garrison . | . . . Intercept . | . . . Searches Triggered . | . . . Construction Impeded . | . . . Haulers Reinforced . | . . . Active Scanning Responses . | . . . Cargo Convoy Interrupts . | . . . Stealth | -11 -10 -10 --------- Run | Yrd Mat Min Distress Signals . | . . . Communications Jammed . | . . . Distress Signals . | . . . Times Spotted 29 | . 10 19 Peak Tracking Total 13 | . 5 13 Tactical Retreats . | . . . Traps | -11 -10 -10 ------- Run | Yrd Mat Min Traps Triggered . | . . . Indirectly . | . . . Trap Hack Attempts . | . . . Triggered . | . . . Disarmed . | . . . Reprogrammed . | . . . Reused . | . . . Traps Extracted . | . . . Installed . | . . . Triggered . | . . . Machines | -11 -10 -10 ---------- Run | Yrd Mat Min Machines Disabled . | . . . Max in Single Turn . | . . . Machines Repaired . | . . . Machines Dismantled . | . . . Machines Sabotaged . | . . . Overloaded Fab Kills . | . . . Hacking | -11 -10 -10 --------- Run | Yrd Mat Min Machines Accessed 3 | . 3 . Terminals 3 | . 3 . Fabricators . | . . . Repair Stations . | . . . Recycling Units . | . . . Scanalyzers . | . . . Garrison Access . | . . . Total Hacks 9 | . 9 . Successful 4 | . 4 . Failed 5 | . 5 . Catastrophic 1 | . 1 . Database Lockouts . | . . . Manual 3 | . 3 . Terminals 9 | . 9 . Fabricators . | . . . Repair Stations . | . . . Recycling Units . | . . . Scanalyzers . | . . . Garrison Access . | . . . Terminal Hacks 4 | . 4 . Record 1 | . 1 . Locate Traps 1 | . 1 . Dispatch Records 1 | . 1 . Recall Investigation 1 | . 1 . Fabricator Hacks . | . . . Repair Station Hacks . | . . . Recycling Unit Hacks . | . . . Scanalyzer . | . . . Garrison Access Hacks . | . . . Unauthorized Hacks . | . . . Terminals . | . . . Fabricators . | . . . Repair Stations . | . . . Recycling Units . | . . . Scanalyzers . | . . . Garrison Access . | . . . Data Cores Recovered . | . . . Used . | . . . Hacking Detections 3 | . 3 . Full Trace Events 2 | . 2 . Feedback Events . | . . . Feedback Blocked . | . . . Robot Schematics Acquired . | . . . Robots Built . | . . . Authchips . | . . . Time . | . . . Total Robot Build Rating . | . . . Part Schematics Acquired . | . . . Parts Built . | . . . Authchips . | . . . Time . | . . . Total Part Build Rating . | . . . Parts Repaired . | . . . Time . | . . . Parts Recycled . | . . . Recycled Matter . | . . . Retrieved Matter . | . . . Retrieved Components . | . . . Parts Scanalyzed . | . . . Part Schematics Acquired . | . . . Parts Damaged . | . . . Bothacking | -11 -10 -10 ------------ Run | Yrd Mat Min Used RIF Installer . | . . . Robots Hacked . | . . . Non-combat . | . . . Combat . | . . . Robot Hacks Applied . | . . . Relay Couplers Released . | . . . Fabnet Peak Effective % . | . . . Robots Rewired . | . . . Allies Hacked . | . . . Hacks Repelled . | . . . Allies | -11 -10 -10 -------- Run | Yrd Mat Min Total Allies 5 | . . 5 Largest Group 3 | . . 3 Highest-Rated Group 57 | . . 57 Highest-Rated Ally 31 | . . 31 Total Orders 1 | . . 1 GUARD 1 | . . 1 Ally Attacks 19 | . . 19 Total Damage 198 | . . 198 Kills 4 | . . 4 Allies Corrupted . | . . . Allies Melted . | . . . Intel | -11 -10 -10 ------- Run | Yrd Mat Min Robot Analysis Total . | . . . Derelict Logs Recovered 1 | . . 1 Drone Launches . | . . . Drone Recoveries . | . . . Exploration | -11 -10 -10 ------------- Run | Yrd Mat Min Turns Passed 1053 | 120 467 466 Spaces Moved 601 | 69 216 316 Core 14 | 14 . . Treads 271 | 55 216 . Legs 299 | . . 299 Wheels 17 | . . 17 Hover . | . . . Flight . | . . . Fastest Speed 50 | 50 160 80 Average Speed 145 | 137 188 117 Slowest Speed 400 | 160 400 120 Overloaded Moves . | . . . Propulsion Burnouts . | . . . Robots Hopped . | . . . Cave-ins Triggered . | . . . Exploration Rate (%) 30 | 4 36 50 Regions Visited 2 Branch Regions 1 Pre-discovered Areas 1 | . . 1 Known Exits Taken 1 | . 1 . Unknown Exits Taken 1 | 1 . . Scrap Searched . | . . . Spaces Dug . | . . . Terrain Destroyed 24 | . . 24 Melee . | . . . Projectile . | . . . AOE 24 | . . 24 Terrain Rammed . | . . . Walls Destroyed . | . . . Machines Disabled . | . . . Actions | -11 -10 -10 --------- Run | Yrd Mat Min Total 728 | 94 245 389 Wait 44 | 11 . 33 Move 599 | 68 215 316 Hop . | . . . Pick Up 22 | 9 6 7 Fast Attach . | . . . Attach 17 | 6 3 8 Detach . | . . . Swap . | . . . Drop 7 | . 3 4 Fire 38 | . 17 21 Melee . | . . . Ram . | . . . Kick . | . . . Crush 1 | . 1 . Escape Stasis . | . . . Rewire . | . . . Trap . | . . . Miscellaneous . | . . . Route ------- -11/Scrapyard -10/Materials -10/Mines (discovered 1 exit: *Mat) History --------- Turn | Location | Event 7 | -11/Scrapyard | Discovered new exit (range 15) 121 | -11/Scrapyard | Entered Materials 543 | -10/Materials | Discovered new exit (range 13) 586 | -10/Materials | Identified exit to Mines 588 | -10/Materials | Entered Mines 593 | -10/Mines | Core integrity fell below 50% 646 | -10/Mines | Lost 4 parts (3n1w) 664 | -10/Mines | Build established: Mutant 717 | -10/Mines | Learned location of Mines (-9) 772 | -10/Mines | Discovered new exit (range 5) 778 | -10/Mines | Identified exit to Materials 781 | -10/Mines | Assisted by bots powering up and referring to "LRC-V3" 1018 | -10/Mines | Assembled infested the area 1018 | -10/Mines | Found a damaged Exp. Sensor Array with a note attached 1020 | -10/Mines | Found Prototype Device 1021 | -10/Mines | Identified Exp. Sensor Array 1047 | -10/Mines | Core integrity fell below 20% 1054 | -10/Mines | Destroyed by as-58677 with Assembled Rifle Last Messages --------------- 01046_ D-53 Grenadier unfolds itself. 01048_ U-05 Engineer lays Concrete. 01049_ The unstable cave ceiling collapses. 01049_ U-05 Engineer builds a Wall. 01049_ as-90650 destroyed. 01050_ as-69202 destroyed. 01050_ as-02606 destroyed. 01050_ as-42766 destroyed. 01051_ The unstable cave ceiling collapses. 01051_ U-05 Engineer destroyed. 01051_ 9A-QW2(z) destroyed. 01053_ as-92896 destroyed. 01053_ Lgt. Nuclear Core destroyed. 01053_ Lgt. Assault Rifle destroyed. 01054_ Aluminum Leg destroyed. 01054_ Destroyed Aluminum Leg. 01054_ Aluminum Leg destroyed. 01054_ Destroyed Aluminum Leg. 01054_ Grenade Launcher destroyed. 01054_ Destroyed Grenade Launcher. Map ----- +----------------------------------------------------+ | ?????????????????????????????????????????????????? | | ?????????????????????????????????????????????????? | | ?????????????????????????????????????????????????? | | ?????????????????????????????????????????????????? | | ?????????????????????????????????????????????????? | | ?????????????????????????????????????????????????? | | ?????????????????????????????????????????????????? | | ?????????????????????????????????????????????????? | | ?????????????????????????????????????????????????? | | ?????????????????????????????????????????????????? | | ?????????????????????????????????????????????????? | | ?????????????????????????????????????????????????? | | ??????????????????xx?????????x???????????????????? | | ???????????????????x???????????????????????? #???? | | ????????????????????????????????????????xx #????? | | ?????????????????????????????????###### #?????? | | ??????????????????????????### #### x ?????????? | | ??????????????????? %#????????????? | | ??????????????????????????######## #????????????? | | ???????????????????????????????# # %#???x????????? | | ???????????????????????##?###?# aa%#????????????? | | ?????????????????????### # ## % #????????????? | | ????????????????????## % #####?????????? | | ????????????????????# * ga% a #???????? | | ????????????????????# = ######???????? | | ????????????????????# d@ ##??????????????? | | ????????????????????# d # #???????????????? | | ##??????????????????# ###????????????????? | | #?????????????????## ##??????????????????? | | #????????????????# % ##???????????????????? | | #???????????###### ????????????????????? | | ###???????## ## ##???????????????????? | | ######### ##??????????????????? | | x # # ##?????????????????? | | x ##### ##????????????????? | | ######## #####??## ##???????????????? | | ##????# #??????# ##??????????????? | | #????# #??????# ##?????????????? | | #???# #??????# ###???????????? | | #???# #??????## # #???????????? | | ## ## ##???# #???????## ##???????????? | | ?# ?# ###????# #????????## x% ##???????????? | | ? ??# ##??????# #?????????#### ##?###???????? | | ##??#####???????# #????????????## ## ## #####? | | ?# ##########???# ####??????##### % | | ?# #???# #??????# ## | | ##### ##### #???#### #?????### ###### ? | | ## #???# ######## ####### % #??????? | | ## #???# * ## ##??????? | | ## #???# % ##?###???????? | +----------------------------------------------------+ Best States ------------- Heat Dissipation 25 Energy Generation 14 Energy Capacity 250 Matter Stores 300 Matter Capacity 300 Sight Range 16 Robot Scan Range 20 Terrain Scan Density 10 Evasion (%) 55 Recoil Reduction 2 Item Schematics ----------------- None Robot Schematics ------------------ None Fabricated ------------ Nothing Alien Tech Used ----------------- None Achievements -------------- None Challenges ------------ None Game ------ Seed FusionSkeletonTelecube Manual? 0 Play Time 00:16:00 Cumulative 15.2 hours Start 2024.09.20 @ 09:16:57 End 2024.09.20 @ 09:30:14 Sessions 1 Manual Loads 0 Difficulty Rogue Special Mode None Game No. 33 Rogue 28 Adventurer 5 Explorer 0 Win Type - Total 0 Types 0/0/0/0/0/0/0/0/0 Lore% 8 Gallery% 13 Achievement% 13 Wizard Run 0 Options --------- Layout 0 ASCII 0 Keyboard 0 Movement Numpad Keybinds 0 Fullscreen 1 Font 18/SmallcapsGlow Map View 76x50 Zoom Use 1% Tactical HUD 1 Map Filters NONE Filters NONE Steam 1 RUN: 0ec5f480-c74a-4cf5-ba06-872599ac3cb5